bitfinex-derivatives/quotes_BTCF0:USTF0_20250212
["timestamp","ask_amount","ask_price","bid_price","bid_amount"]
[1739345402573,0.2079931,96172.0,96163.0,0.011]
[1739345404182,0.06984,96171.0,96163.0,0.011]
[1739345405081,0.2080047,96167.0,96163.0,0.011]
[1739345407173,0.2080047,96167.0,96163.0,0.003]
[1739345407369,0.2080047,96167.0,96163.0,0.011]
[1739345412789,0.2080047,96167.0,96166.0,0.3608]
[1739345413997,0.2080047,96167.0,96166.0,0.3688]
[1739345418001,0.2080206,96159.0,96156.0,0.36095598]
[1739345418498,0.2080246,96157.0,96156.0,0.00015598]
[1739345418699,0.2080441,96148.0,96138.0,0.01026006]
[1739345418887,0.2080684,96137.0,96126.0,0.3608]
[1739345419393,0.208077,96133.0,96126.0,0.3608]
[1739345419597,0.208077,96133.0,96131.0,0.19715027]
[1739345419798,0.208077,96133.0,96131.0,0.18686954]
[1739345420895,0.211077,96133.0,96126.0,0.3608]
[1739345422595,0.212077,96133.0,96126.0,0.3608]
[1739345422996,0.209077,96133.0,96126.0,0.3618]
[1739345423195,0.208077,96133.0,96126.0,0.3618]
[1739345424899,0.15193227,96136.0,96126.0,0.3618]
[1739345425100,0.2080812,96131.0,96126.0,0.3618]
[1739345426504,0.2080812,96131.0,96126.0,0.3608]
[1739345426704,0.2080812,96131.0,96126.0,0.3618]
[1739345427107,0.2779212,96131.0,96126.0,0.3618]
[1739345427407,0.2779212,96131.0,96126.0,0.3608]
[1739345427594,0.2779212,96131.0,96126.0,0.3618]
[1739345440513,0.2080896,96127.0,96126.0,0.3618]
[1739345441316,0.2080896,96127.0,96126.0,0.001]
[1739345442618,0.2080896,96127.0,96122.0,0.00015598]
[1739345442818,0.2080896,96127.0,96126.0,0.001]
[1739345443814,0.2080896,96127.0,96122.0,0.00315598]
[1739345444509,0.2080896,96127.0,96122.0,0.00015598]
[1739345444719,0.2080896,96127.0,96126.0,0.001]
[1739345445919,0.01014968,96128.0,96119.0,0.3608]
[1739345446118,0.0321,96130.0,96119.0,0.3608]
[1739345446119,0.2081047,96120.0,96119.0,0.3608]
[1739345446319,0.2779447,96120.0,96119.0,0.3608]
[1739345447327,0.2779447,96120.0,96119.0,0.002]
[1739345447715,0.2779447,96120.0,96119.0,0.008]
[1739345447911,0.06984,96120.0,96110.0,0.00015598]
[1739345448116,0.08209227,96120.0,96119.0,0.2081069]
[1739345448315,0.08209227,96129.0,96123.0,0.2080961]
[1739345448516,0.44289227,96133.0,96123.0,0.5688961]
[1739345449011,0.08209227,96133.0,96132.0,0.3608]
[1739345449214,0.08224825,96142.0,96132.0,0.3608]
[1739345449524,0.08224825,96142.0,96136.0,0.20807]
[1739345449729,0.00015598,96142.0,96137.0,0.0306]
[1739345450917,0.00815598,96142.0,96137.0,0.0316]
[1739345451540,0.01015598,96142.0,96137.0,0.0316]
[1739345451733,0.01015598,96142.0,96137.0,0.04181352]
[1739345452024,0.01015598,96142.0,96141.0,0.3608]
[1739345452226,0.01115598,96142.0,96141.0,0.3608]
[1739345453130,0.01615598,96142.0,96141.0,0.3618]
[1739345453323,0.01815598,96142.0,96141.0,0.3618]
[1739345456631,0.01815598,96142.0,96141.0,0.001]
[1739345456824,0.22621308,96142.0,96141.0,0.001]
[1739345458832,0.29601308,96142.0,96141.0,0.001]
[1739345463832,0.01815598,96142.0,96141.0,0.001]
[1739345476548,0.01815598,96142.0,96141.0,0.0112341]
[1739345476852,0.01815598,96142.0,96141.0,0.001]
[1739345483245,0.08859598,96142.0,96141.0,0.001]
[1739345485452,0.07048,96142.0,96141.0,0.001]
[1739345491256,0.2080693,96137.0,96129.0,0.00015598]
[1739345491863,0.5688693,96137.0,96129.0,0.00015598]
[1739345493456,0.5698693,96137.0,96129.0,0.00015598]
[1739345493662,0.3618,96137.0,96129.0,0.00015598]
[1739345493851,0.2080708,96136.0,96129.0,0.00015598]
[1739345495862,0.2090708,96136.0,96129.0,0.00015598]
[1739345496956,0.001,96136.0,96129.0,0.00015598]
[1739345497156,0.001,96136.0,96132.0,0.2080778]
[1739345498057,0.001,96136.0,96131.0,0.3608]
[1739345498263,0.001,96136.0,96133.0,0.2080754]
[1739345498965,0.003,96136.0,96133.0,0.2080754]
[1739345501167,0.003,96136.0,96131.0,0.37249171]
[1739345501369,0.003,96136.0,96134.0,0.2080723]
[1739345502266,0.07088,96141.0,96134.0,0.2080723]
[1739345502469,0.002,96136.0,96134.0,0.2080723]
[1739345502968,0.07088,96141.0,96134.0,0.2080723]
[1739345503167,0.07088,96141.0,96134.0,0.2090723]
[1739345503760,0.07088,96141.0,96135.0,0.0305]
[1739345504365,0.07088,96141.0,96136.0,0.23827]
[1739345505457,0.07088,96141.0,96137.0,0.0309]
[1739345505665,0.07188,96141.0,96137.0,0.0309]
[1739345506163,0.001,96141.0,96137.0,0.0309]
[1739345507262,0.001,96141.0,96137.0,0.2389668]
[1739345507459,0.001,96141.0,96137.0,0.2409668]
[1739345507663,0.001,96141.0,96139.0,0.3608]
[1739345508168,0.07064,96144.0,96139.0,0.3608]
[1739345508474,0.001,96141.0,96139.0,0.3608]
[1739345508972,0.07064,96144.0,96139.0,0.3608]
[1739345509168,0.003,96141.0,96139.0,0.3608]
[1739345510072,0.07364,96144.0,96139.0,0.3608]
[1739345512069,0.07064,96144.0,96137.0,0.2389668]
[1739345512377,0.003,96141.0,96137.0,0.0309]
[1739345512773,0.07064,96144.0,96137.0,0.0309]
[1739345512967,0.07364,96144.0,96137.0,0.0309]
[1739345513574,0.07064,96144.0,96137.0,0.0309]
[1739345513875,0.001,96141.0,96137.0,0.0309]
[1739345515173,0.07032,96143.0,96137.0,0.0309]
[1739345515874,0.001,96141.0,96137.0,0.0309]
[1739345516977,0.07132,96143.0,96137.0,0.0309]
[1739345518568,0.001,96141.0,96137.0,0.0309]
[1739345519477,0.07132,96143.0,96137.0,0.0309]
[1739345520278,0.001,96141.0,96137.0,0.0309]
[1739345521077,0.001,96141.0,96136.0,0.0302]
[1739345521677,0.07132,96143.0,96136.0,0.0302]
[1739345522378,0.07032,96143.0,96136.0,0.0302]
[1739345522578,0.001,96141.0,96136.0,0.0302]
[1739345523285,0.07132,96143.0,96136.0,0.0302]
[1739345524679,0.07032,96143.0,96136.0,0.0302]
[1739345524880,0.001,96141.0,96136.0,0.0302]
[1739345525273,0.001,96141.0,96139.0,0.3608]
[1739345525473,0.07032,96143.0,96139.0,0.3608]
[1739345525772,0.07132,96143.0,96139.0,0.3608]
[1739345526280,0.003,96141.0,96139.0,0.3608]
[1739345528281,0.07032,96143.0,96139.0,0.3608]
[1739345528471,0.07332,96143.0,96139.0,0.3608]
[1739345529174,0.003,96141.0,96139.0,0.3608]
[1739345529481,0.003,96141.0,96136.0,0.0302]
[1739345529671,0.003,96141.0,96139.0,0.5688628]
[1739345530179,0.003,96143.0,96139.0,0.5688628]
[1739345531776,0.08189868,96147.0,96139.0,0.5698628]
[1739345532381,0.08189868,96147.0,96139.0,0.5688628]
[1739345532573,0.08189868,96147.0,96139.0,0.5738628]
[1739345532767,0.08189868,96147.0,96139.0,0.3658]
[1739345533282,0.08289868,96147.0,96139.0,0.3608]
[1739345534282,0.08289868,96147.0,96139.0,0.3628]
[1739345535569,0.08289868,96147.0,96145.0,0.2080491]
[1739345535570,0.001,96147.0,96145.0,0.2080491]
[1739345536983,0.001,96147.0,96145.0,0.2100491]
[1739345537479,0.001,96147.0,96145.0,0.2090491]
[1739345537869,0.00015598,96151.0,96145.0,0.2150491]
[1739345538076,0.00015598,96151.0,96147.0,0.3608]
[1739345538275,0.00015598,96151.0,96147.0,0.5688451]
[1739345539580,0.00015598,96151.0,96147.0,0.5698451]
[1739345541186,0.00015598,96151.0,96148.0,0.2080424]
[1739345541987,0.00015598,96151.0,96150.0,0.2080398]
[1739345543278,0.00015598,96151.0,96150.0,0.2100398]
[1739345543883,0.00015598,96151.0,96150.0,0.2090398]
[1739345544079,0.00015598,96151.0,96150.0,0.2140398]
[1739345544780,0.00015598,96151.0,96150.0,0.2493398]
[1739345545590,0.00015598,96151.0,96150.0,0.2463398]
[1739345546881,0.00015598,96151.0,96150.0,0.2473398]
[1739345550287,0.0698,96170.0,96150.0,0.2473398]
[1739345550288,0.2079565,96189.0,96150.0,0.0393]
[1739345550591,0.12474717,96190.0,96187.0,0.2079588]
[1739345550890,0.0698,96191.0,96187.0,0.2079588]
[1739345551079,0.0698,96191.0,96181.0,0.3608]
[1739345551283,0.12474717,96197.0,96191.0,0.2079509]
[1739345551482,0.00015539,96196.0,96191.0,0.2079509]
[1739345551882,0.00015539,96196.0,96192.0,0.2079479]
[1739345552489,0.00015539,96196.0,96193.0,0.2079454]
[1739345552691,0.00315539,96196.0,96194.0,0.2079431]
[1739345553183,0.00315539,96196.0,96192.0,0.3618]
[1739345553491,0.00315539,96196.0,96192.0,0.3608]
[1739345553684,0.0639,96195.0,96193.0,0.001]
[1739345554985,0.0639,96195.0,96193.0,0.002]
[1739345555185,0.0639,96195.0,96194.0,0.001]
[1739345555791,0.0639,96195.0,96193.0,0.002]
[1739345556492,0.0639,96195.0,96194.0,0.2089446]
[1739345556698,0.0324,96195.0,96194.0,0.2089446]
[1739345556991,0.00015539,96196.0,96194.0,0.2079446]
[1739345557192,0.00015539,96196.0,96194.0,0.2089446]
[1739345558685,0.00015539,96196.0,96194.0,0.2099446]
[1739345559185,0.00015539,96196.0,96194.0,0.2089446]
[1739345559383,0.00015539,96196.0,96194.0,0.2099446]
[1739345560190,0.00015539,96196.0,96194.0,0.22041413]
[1739345565702,0.31451277,96207.0,96194.0,0.01246953]
[1739345566001,0.03,96209.0,96196.0,0.2079388]
[1739345567699,0.03,96209.0,96196.0,0.2089388]
[1739345568396,0.03,96209.0,96196.0,0.2099388]
[1739345569202,0.0621,96209.0,96196.0,0.2099388]
[1739345570701,0.0621,96209.0,96196.0,0.002]
[1739345570996,0.3608,96207.0,96196.0,0.002]
[1739345571999,0.2079189,96206.0,96196.0,0.002]
[1739345572684,0.2079189,96206.0,96196.0,0.001]
[1739345572885,0.2079189,96206.0,96196.0,0.002]
[1739345576399,0.12474717,96220.0,96205.0,0.2079198]
[1739345576898,0.12474717,96220.0,96210.0,0.20791]
[1739345578700,0.12474717,96220.0,96213.0,0.3608]
[1739345580303,0.12474717,96220.0,96213.0,0.3618]
[1739345580895,0.12474717,96220.0,96213.0,0.3628]
[1739345585001,0.33263667,96220.0,96213.0,0.3628]
[1739345586099,0.2078919,96219.0,96213.0,0.3628]
[1739345586498,0.2783319,96219.0,96213.0,0.3628]
[1739345590297,0.28866672,96219.0,96213.0,0.3628]
[1739345591395,0.2783319,96219.0,96213.0,0.3628]
[1739345591794,0.07044,96219.0,96213.0,0.3628]
[1739345591995,0.19510717,96220.0,96213.0,0.3628]
[1739345592995,0.12474717,96220.0,96213.0,0.3618]
[1739345593207,0.19502717,96223.0,96216.0,0.2078961]
[1739345593511,0.19502717,96223.0,96217.0,0.0624]
[1739345593813,0.19502717,96223.0,96217.0,0.2702937]
[1739345594301,0.12474717,96223.0,96220.0,0.2078874]
[1739345594497,0.3608,96224.0,96220.0,0.2078874]
[1739345594714,0.0114893,96226.0,96220.0,0.2078874]
[1739345596207,0.0114893,96226.0,96220.0,0.2088874]
[1739345596698,0.0114893,96226.0,96220.0,0.2098874]
[1739345598314,0.0114893,96226.0,96220.0,0.002]
[1739345601813,0.0114893,96226.0,96221.0,0.2078851]
[1739345603118,0.0114893,96226.0,96221.0,0.2088851]
[1739345603319,0.0114893,96226.0,96221.0,0.2098851]
[1739345606722,0.0114893,96226.0,96225.0,0.2078776]
[1739345608418,0.0114893,96226.0,96225.0,0.2098776]
[1739345608619,0.00993,96226.0,96225.0,0.2098776]
[1739345609131,0.00993,96226.0,96225.0,0.22005377]
[1739345609627,0.00193031,96226.0,96225.0,0.22005377]
[1739345611825,0.12474717,96240.0,96234.0,0.2078578]
[1739345612014,0.12474717,96240.0,96239.0,0.7216]
[1739345612413,0.2078405,96243.0,96239.0,0.7216]
[1739345612623,0.12474717,96249.0,96241.0,0.2078411]
[1739345612824,0.12474717,96249.0,96248.0,0.3608]
[1739345613129,0.2078243,96250.0,96248.0,0.3608]
[1739345613824,0.2078243,96250.0,96248.0,0.3618]
[1739345615628,0.2078243,96250.0,96248.0,0.3628]
[1739345616429,0.2078243,96250.0,96248.0,0.002]
[1739345616622,0.2078243,96250.0,96249.0,0.3608]
[1739345617827,0.2078243,96250.0,96249.0,0.3618]
[1739345618036,0.2078243,96250.0,96249.0,0.3628]
[1739345619227,0.0318,96254.0,96249.0,0.5706258]
[1739345619420,0.12474717,96258.0,96253.0,0.2078172]
[1739345619627,0.15694717,96263.0,96253.0,0.2078172]
[1739345619829,0.15694717,96263.0,96257.0,0.3608]
[1739345620129,0.0322,96263.0,96257.0,0.3608]
[1739345621231,0.0322,96263.0,96257.0,0.3618]
[1739345621436,0.0322,96263.0,96257.0,0.3628]
[1739345621623,0.17815144,96261.0,96257.0,0.3628]
[1739345622422,0.17815144,96261.0,96257.0,0.3618]
[1739345622821,0.17815144,96261.0,96257.0,0.3608]
[1739345623026,0.2078142,96255.0,96249.0,0.3608]
[1739345623231,0.0302,96254.0,96249.0,0.3608]
[1739345623927,0.207826,96249.0,96247.0,0.0001559]
[1739345624137,0.0305,96248.0,96247.0,0.0001559]
[1739345624331,0.10054,96248.0,96247.0,0.0001559]
[1739345631828,0.0305,96248.0,96247.0,0.0001559]
[1739345632331,0.06976,96249.0,96247.0,0.0001559]
[1739345632529,0.3608,96255.0,96247.0,0.0001559]
[1739345632731,0.3608,96255.0,96247.0,0.2079843]
[1739345632732,0.06984,96254.0,96247.0,0.2079843]
[1739345633928,0.06984,96254.0,96247.0,0.0001559]
[1739345635228,0.2776564,96254.0,96247.0,0.0001559]
[1739345635437,0.06984,96254.0,96247.0,0.0001559]
[1739345636228,0.207819,96253.0,96247.0,0.0001559]
[1739345637834,0.2078201,96252.0,96247.0,0.0001559]
[1739345639638,0.06976,96257.0,96250.0,0.207822]
[1739345639838,0.2775705,96257.0,96251.0,0.0325]
[1739345640034,0.2078129,96255.0,96251.0,0.0635]
[1739345640539,0.2078188,96253.0,96251.0,0.031]
[1739345642641,0.2078188,96253.0,96252.0,0.0308]
[1739345645449,0.12474717,96259.0,96254.0,0.2078147]
[1739345647850,0.12474717,96259.0,96254.0,0.21818594]
[1739345650250,0.2078,96261.0,96254.0,0.21818594]
[1739345651051,0.12474717,96264.0,96251.0,0.031]
[1739345651248,0.2078235,96251.0,96248.0,0.36236]
[1739345651552,0.2078197,96252.0,96248.0,0.3608]
[1739345651748,0.07016,96255.0,96248.0,0.01010429]
[1739345651945,0.2078225,96251.0,96247.0,0.0001559]
[1739345655854,0.07016,96255.0,96247.0,0.0001559]
[1739345656054,0.33259761,96258.0,96252.0,0.3608]
[1739345656443,0.12479041,96258.0,96253.0,0.0325]
[1739345656656,4.324e-05,96258.0,96253.0,0.0325]
[1739345657355,4.324e-05,96258.0,96254.0,0.2078142]
[1739345659553,4.324e-05,96258.0,96255.0,0.2078114]
[1739345660855,4.324e-05,96258.0,96255.0,0.21784971]
[1739345664658,4.324e-05,96258.0,96253.0,0.0325]
[1739345677163,4.324e-05,96258.0,96254.0,0.3608]
[1739345687460,4.324e-05,96258.0,96253.0,0.0325]
[1739345687666,4.324e-05,96258.0,96254.0,0.3608]
[1739345689170,4.324e-05,96258.0,96253.0,0.0325]
[1739345689376,4.324e-05,96258.0,96254.0,0.3608]
[1739345693977,4.324e-05,96258.0,96253.0,0.0325]
[1739345694271,4.324e-05,96258.0,96254.0,0.3608]
[1739345695573,4.324e-05,96258.0,96253.0,0.0325]
[1739345695775,4.324e-05,96258.0,96254.0,0.3608]
[1739345695971,4.324e-05,96258.0,96253.0,0.0325]
[1739345696169,4.324e-05,96258.0,96254.0,0.3608]
[1739345696773,0.2078099,96257.0,96254.0,0.3608]
[1739345696969,0.36084324,96258.0,96247.0,0.0001559]
[1739345697168,0.2078278,96249.0,96247.0,0.0001559]
[1739345697374,0.06976,96248.0,96247.0,0.0001559]
[1739345697568,0.13536,96248.0,96247.0,0.0001559]
[1739345701781,0.14570139,96248.0,96247.0,0.0001559]
[1739345702786,0.14570139,96248.0,96235.0,0.0301]
[1739345702978,0.2078605,96233.0,96213.0,0.2079019]
[1739345703177,0.2078725,96228.0,96221.0,0.04139715]
[1739345703580,0.2078725,96228.0,96221.0,0.0311]
[1739345705181,0.06976,96227.0,96221.0,0.0311]
[1739345705379,0.06976,96227.0,96222.0,0.0304]
[1739345706582,0.2776335,96227.0,96222.0,0.0304]
[1739345706998,0.2776335,96227.0,96222.0,0.0394]
[1739345707803,0.2078792,96225.0,96221.0,0.004]
[1739345707999,0.2078831,96223.0,96219.0,0.3608]
[1739345708194,0.2078886,96220.0,96219.0,0.3608]
[1739345708399,0.2038972,96216.0,96215.0,0.0001559]
[1739345708602,0.2736572,96216.0,96215.0,0.0001559]
[1739345709399,0.2656572,96216.0,96215.0,0.0001559]
[1739345709605,0.2656572,96216.0,96215.0,0.0021559]
[1739345710303,0.2656572,96216.0,96215.0,0.0031559]
[1739345711207,0.2776572,96216.0,96215.0,0.0031559]
[1739345716610,0.06976,96216.0,96215.0,0.0031559]
[1739345716905,0.2078878,96221.0,96215.0,0.0031559]
[1739345717210,0.06976,96220.0,96215.0,0.0031559]
[1739345717901,0.3608,96224.0,96215.0,0.0031559]
[1739345718100,0.06976,96223.0,96215.0,0.0031559]
[1739345718505,0.06976,96223.0,96215.0,0.0021559]
[1739345718709,0.06976,96223.0,96215.0,0.0011559]
[1739345719104,0.06976,96223.0,96215.0,0.01127507]
[1739345719311,0.06976,96223.0,96215.0,0.0011559]
[1739345720500,0.06976,96223.0,96216.0,0.3608]
[1739345721111,0.06976,96223.0,96217.0,0.0326]
[1739345721610,0.06976,96223.0,96218.0,0.031]
[1739345722810,0.06976,96222.0,96218.0,0.031]
[1739345723209,0.002,96223.0,96218.0,0.031]
[1739345724808,0.002,96222.0,96218.0,0.031]
[1739345725510,0.002,96223.0,96218.0,0.031]
[1739345726317,0.12456832,96225.0,96218.0,0.031]
[1739345726611,0.12456832,96225.0,96224.0,0.3608]
[1739345726816,0.12456832,96240.0,96224.0,0.3608]
[1739345727008,0.06976,96238.0,96226.0,0.207875]
[1739345728108,0.12456832,96240.0,96233.0,0.3608]
[1739345728616,0.12456832,96240.0,96233.0,0.5686601]
[1739345730113,0.12456832,96240.0,96233.0,0.3608]
[1739345730915,0.00315562,96234.0,96233.0,0.3608]
[1739345731712,0.00315562,96234.0,96233.0,0.37096044]
[1739345737120,0.00315562,96234.0,96233.0,0.01016044]
[1739345737323,0.00315562,96234.0,96232.0,0.3931]
[1739345738523,0.00215562,96234.0,96232.0,0.3931]
[1739345739021,0.00215562,96234.0,96232.0,0.37119745]
[1739345739418,0.00515562,96234.0,96232.0,0.37119745]
[1739345740414,0.00515562,96234.0,96232.0,0.3608]
[1739345740614,0.21301422,96234.0,96232.0,0.3608]
[1739345740921,0.21401422,96234.0,96232.0,0.3608]
[1739345741518,0.20901422,96234.0,96232.0,0.3608]
[1739345741721,0.3608,96233.0,96210.0,0.2079094]
[1739345741918,0.2078888,96220.0,96210.0,0.2079094]
[1739345742421,0.2078888,96220.0,96215.0,0.01044568]
[1739345743216,0.207892,96219.0,96215.0,0.01844568]
[1739345743823,0.207892,96219.0,96215.0,0.0121559]
[1739345744514,0.207892,96219.0,96216.0,0.0331]
[1739345744722,0.2078937,96218.0,96216.0,0.0331]
[1739345745724,0.2078937,96218.0,96216.0,0.0351]
[1739345747118,0.2078937,96218.0,96216.0,0.0361]
[1739345747526,0.2078937,96218.0,96216.0,0.003]
[1739345749427,0.4211,96224.0,96216.0,0.003]
[1739345750017,0.6289806,96224.0,96216.0,0.003]
[1739345751027,0.6289806,96224.0,96216.0,0.002]
[1739345755323,0.6289806,96224.0,96216.0,0.2098947]
[1739345760234,0.2681806,96224.0,96216.0,0.2098947]
[1739345760827,0.2078844,96222.0,96216.0,0.2098947]
[1739345761321,0.2078866,96221.0,96216.0,0.2098947]
[1739345761527,0.5686944,96218.0,96216.0,0.002]
[1739345762035,0.0328,96217.0,96216.0,0.002]
[1739345763231,0.0328,96217.0,96216.0,0.001]
[1739345763631,0.0328,96217.0,96216.0,0.002]
[1739345766245,0.43056,96218.0,96216.0,0.002]
[1739345766839,0.43056,96218.0,96216.0,0.2098954]
[1739345767634,0.06976,96218.0,96216.0,0.2098954]
[1739345767829,0.3608,96228.0,96216.0,0.2098954]
[1739345768142,0.3608,96228.0,96220.0,0.2078869]
[1739345768143,0.06976,96227.0,96220.0,0.2078869]
[1739345769142,0.06976,96227.0,96217.0,0.0309]
[1739345770547,0.06976,96227.0,96217.0,0.0319]
[1739345770749,0.06976,96227.0,96217.0,0.0329]
[1739345774145,0.06976,96227.0,96217.0,0.0349]
[1739345774553,0.06976,96227.0,96217.0,0.0329]
[1739345774748,0.06976,96227.0,96217.0,0.0339]
[1739345775053,0.06976,96227.0,96217.0,0.2407932]
[1739345775753,0.3608,96228.0,96217.0,0.2407932]
[1739345775949,0.3608,96228.0,96217.0,0.0329]
[1739345776154,0.3608,96228.0,96227.0,0.207873]
[1739345777253,0.00015562,96234.0,96227.0,0.207873]
[1739345777453,0.00015562,96234.0,96227.0,0.208873]
[1739345778054,0.001,96228.0,96227.0,0.208873]
[1739345778454,0.001,96228.0,96227.0,0.21903892]
[1739345778857,0.00115562,96234.0,96227.0,0.21903892]
[1739345779159,0.00115562,96234.0,96227.0,0.21803892]
[1739345780659,0.001,96228.0,96227.0,0.21803892]
[1739345781460,0.00115562,96234.0,96227.0,0.21803892]
[1739345782253,0.001,96228.0,96227.0,0.21803892]
[1739345783764,0.00015562,96234.0,96227.0,0.21803892]
[1739345784059,0.00015562,96234.0,96227.0,0.01016592]
[1739345784267,0.00015562,96234.0,96230.0,0.2078654]
[1739345785365,0.00215562,96234.0,96230.0,0.2078654]
[1739345785561,0.00215562,96234.0,96231.0,0.2078633]
[1739345786958,0.00115562,96234.0,96231.0,0.2078633]
[1739345787558,0.00015562,96234.0,96231.0,0.2078633]
[1739345787759,0.00215562,96234.0,96231.0,0.2078633]
[1739345790564,0.00215562,96234.0,96226.0,0.3608]
[1739345790765,0.207863,96232.0,96226.0,0.3608]
[1739345791469,0.2078658,96231.0,96226.0,0.3608]
[1739345791866,0.2078658,96231.0,96226.0,0.3618]
[1739345792361,0.2078658,96231.0,96226.0,0.3628]
[1739345793074,0.2088658,96231.0,96226.0,0.3618]
[1739345793862,0.2088658,96231.0,96226.0,0.3608]
[1739345794173,0.2138658,96231.0,96226.0,0.3608]
[1739345796661,0.2138658,96231.0,96223.0,0.3608]
[1739345798559,0.2128658,96231.0,96223.0,0.3608]
[1739345799373,0.2108658,96231.0,96223.0,0.3608]
[1739345802171,0.2078691,96229.0,96223.0,0.3608]
[1739345803379,0.2078729,96228.0,96223.0,0.3608]
[1739345803582,0.2078783,96225.0,96223.0,0.3608]
[1739345803875,0.2078861,96221.0,96215.0,0.0103147]
[1739345804079,0.2078956,96217.0,96215.0,0.0001559]
[1739345804275,0.0957,96216.0,96215.0,0.0001559]
[1739345805974,0.0957,96216.0,96215.0,0.0021559]
[1739345807178,0.0957,96216.0,96215.0,0.0051559]
[1739345812881,0.4565,96216.0,96215.0,0.0051559]
[1739345814481,0.0957,96216.0,96215.0,0.0051559]
[1739345814786,0.4565,96216.0,96215.0,0.0051559]
[1739345815786,0.0957,96216.0,96215.0,0.0051559]
[1739345815987,0.4565,96216.0,96215.0,0.0051559]
[1739345819578,0.27695817,96216.0,96215.0,0.0051559]
[1739345820686,0.2079106,96210.0,96201.0,0.3931]
[1739345821591,0.2079133,96209.0,96201.0,0.3931]
[1739345821790,0.2079133,96209.0,96201.0,0.4032497]
[1739345821985,0.001,96210.0,96201.0,0.4212497]
[1739345822385,0.2079175,96207.0,96201.0,0.4212497]
[1739345822692,0.2079197,96206.0,96201.0,0.4212497]
[1739345823190,0.2079213,96205.0,96201.0,0.4212497]
[1739345823885,0.001,96207.0,96204.0,0.2079213]
[1739345824787,0.001,96205.0,96204.0,0.2079213]
[1739345825087,0.2079151,96208.0,96204.0,0.2079213]
[1739345825288,0.001,96205.0,96204.0,0.2129213]
[1739345825892,0.001,96205.0,96204.0,0.2229213]
[1739345828400,0.001,96205.0,96204.0,0.015]
[1739345841098,0.001,96205.0,96204.0,0.013]
[1739345841302,0.3608,96213.0,96204.0,0.01357392]
[1739345841502,0.3608,96213.0,96204.0,0.01857392]
[1739345841802,0.3608,96213.0,96206.0,0.2079172]
[1739345843504,0.3608,96213.0,96206.0,0.2099172]
[1739345844200,0.3608,96213.0,96206.0,0.2139172]
[1739345844399,0.08177461,96214.0,96206.0,0.2139172]
[1739345846312,0.08177461,96214.0,96206.0,0.2119172]
[1739345846514,0.08177461,96214.0,96206.0,0.2139172]
[1739345848810,0.08177461,96214.0,96206.0,0.006]
[1739345849001,0.08177461,96214.0,96209.0,0.207911]
[1739345849208,0.2078988,96216.0,96210.0,0.0634]
[1739345850611,0.2078988,96216.0,96210.0,0.0644]
[1739345851613,0.2078988,96216.0,96210.0,0.0654]
[1739345852301,0.2080559,96215.0,96210.0,0.002]
[1739345857318,0.2079075,96212.0,96210.0,0.002]
[1739345858420,0.2079075,96212.0,96210.0,0.001]
[1739345858611,0.2079075,96212.0,96210.0,0.002]
[1739345859012,0.2079075,96212.0,96210.0,0.001]
[1739345859217,0.2079075,96212.0,96210.0,0.002]
[1739345863520,0.2776275,96212.0,96210.0,0.002]
[1739345864416,0.3608,96211.0,96210.0,0.002]
[1739345864807,0.3608,96211.0,96200.0,0.01045969]
[1739345865111,0.2079248,96204.0,96194.0,0.5687438]
[1739345865315,0.2079248,96204.0,96194.0,0.5702238]
[1739345865515,0.2079273,96202.0,96194.0,0.5702238]
[1739345865918,0.16354922,96210.0,96194.0,0.36228]
[1739345866113,0.2069375,96198.0,96194.0,0.3608]
[1739345866524,0.2059375,96198.0,96194.0,0.3608]
[1739345866921,0.2059375,96198.0,96197.0,0.005]
[1739345867216,0.2069375,96198.0,96197.0,0.005]
[1739345867419,0.2069375,96198.0,96196.0,0.0161559]
[1739345868020,0.2069375,96198.0,96197.0,0.01]
[1739345869126,0.2069375,96198.0,96197.0,0.015]
[1739345869523,0.2059375,96198.0,96197.0,0.005]
[1739345869825,0.2069375,96198.0,96197.0,0.005]
[1739345870218,0.2059375,96198.0,96197.0,0.005]
[1739345870419,0.2069375,96198.0,96197.0,0.015]
[1739345876627,0.2766175,96198.0,96197.0,0.015]
[1739345882535,0.2766175,96198.0,96197.0,0.02546855]
[1739345883725,0.2069375,96198.0,96197.0,0.02546855]
[1739345884728,0.001,96198.0,96197.0,0.02546855]
[1739345886623,0.001,96198.0,96197.0,0.015]
[1739345900239,0.2089357,96198.0,96197.0,0.015]
[1739345929057,0.2089357,96198.0,96197.0,0.01]
[1739345929259,0.2089357,96198.0,96197.0,0.013]
[1739345929658,0.2079357,96198.0,96197.0,0.009]
[1739345940376,0.21829555,96198.0,96197.0,0.009]
[1739345943667,0.2079357,96198.0,96197.0,0.009]
[1739345943867,0.2079357,96198.0,96197.0,0.0405]
[1739345947872,0.2079357,96198.0,96197.0,0.04233563]
[1739345950871,0.44257461,96207.0,96197.0,0.04233563]
[1739345951176,0.08177461,96207.0,96197.0,0.04233563]
[1739345951380,0.08177461,96207.0,96203.0,0.3608]
[1739345951575,0.36235949,96218.0,96204.0,0.0605]
[1739345951576,0.08177461,96213.0,96204.0,0.0605]
[1739345952076,0.08177461,96213.0,96208.0,0.00183563]
[1739345952276,0.36235949,96218.0,96214.0,0.2079011]
[1739345952978,0.36235949,96218.0,96214.0,0.00183563]
[1739345953579,0.0021559,96215.0,96214.0,0.00183563]
[1739345954469,0.0041559,96215.0,96214.0,0.00183563]
[1739345955373,0.0041559,96215.0,96214.0,0.36263563]
[1739345955770,0.0031559,96215.0,96214.0,0.39563563]
[1739345956368,0.0071559,96215.0,96214.0,0.39663563]
[1739345956881,0.08177461,96230.0,96223.0,0.2078797]
[1739345957081,0.08177461,96240.0,96232.0,0.2078612]
[1739345957277,0.08177461,96240.0,96233.0,0.033]
[1739345957472,0.08177461,96242.0,96239.0,0.3608]
[1739345957680,0.16354922,96249.0,96239.0,0.3608]
[1739345958073,0.16354922,96249.0,96244.0,0.00183563]
[1739345958274,0.00171437,96250.0,96244.0,0.00183563]
[1739345959181,0.00171437,96250.0,96247.0,0.00183563]
[1739345959479,0.007,96249.0,96247.0,0.00183563]
[1739345959982,0.00871437,96250.0,96247.0,0.00183563]
[1739345960183,0.00871437,96250.0,96248.0,0.00183563]
[1739345960573,0.01771437,96250.0,96248.0,0.00183563]